fUST/lending_fUST_20250901
["ID","MTS","AMOUNT","RATE_DAILY","PERIOD"]
[382688929,1756709449960,-848.1,0.00014563,2]
[382688931,1756709449970,-480.0,0.00014563,2]
[382688933,1756709449979,-480.0,0.00014563,2]
[382688935,1756709449988,-1000.49,0.00014563,2]
[382688937,1756709449998,-151.0,0.00014563,2]
[382688939,1756709450007,-1087.32,0.00014563,2]
[382688941,1756709450016,-480.0,0.00014563,2]
[382688943,1756709450026,-151.0,0.00014563,2]
[382688945,1756709450035,-151.0,0.00014563,2]
[382688947,1756709450044,-480.0,0.00014563,2]
[382688949,1756709450054,-497.33322405,0.00014563,2]
[382688951,1756709450063,-1120.56,0.00014563,2]
[382688953,1756709450073,-270.515282,0.00014563,2]
[382688955,1756709450083,-480.0,0.00014563,2]
[382688957,1756709450092,-480.0,0.00014563,2]
[382688964,1756709450146,-975.72,0.00014563,2]
[382688966,1756709450156,-480.0,0.00014563,2]
[382688968,1756709450165,-480.0,0.00014563,2]
[382688970,1756709450174,-480.0,0.00014563,2]
[382688972,1756709450184,-480.0,0.00014563,2]
[382688974,1756709450193,-486.19925006,0.00014563,2]
[382688976,1756709450203,-480.0,0.00014563,2]
[382688978,1756709450213,-480.0,0.00014563,2]
[382688980,1756709450222,-480.0,0.00014563,2]
[382688982,1756709450232,-843.86,0.00014563,2]
[382688984,1756709450242,-480.0,0.00014563,2]
[382688986,1756709450252,-480.0,0.00014563,2]
[382688988,1756709450261,-480.0,0.00014563,2]
[382688990,1756709450271,-521.55,0.00014563,2]
[382688992,1756709450283,-480.0,0.00014563,2]
[382688994,1756709450292,-480.0,0.00014563,2]
[382688996,1756709450301,-1203.13,0.00014563,2]
[382688998,1756709450310,-480.0,0.00014563,2]
[382689000,1756709450319,-557.37,0.00014563,2]
[382689002,1756709450328,-480.0,0.00014563,2]
[382689004,1756709450337,-580.54,0.00014563,2]
[382689006,1756709450347,-480.0,0.00014563,2]
[382689008,1756709450356,-480.0,0.00014563,2]
[382689010,1756709450365,-480.0,0.00014563,2]
[382689012,1756709450374,-480.0,0.00014563,2]
[382689014,1756709450384,-480.0,0.00014563,2]
[382689016,1756709450393,-1014.76,0.00014563,2]
[382689018,1756709450402,-1131.7,0.00014563,2]
[382689020,1756709450412,-1035.01,0.00014563,2]
[382689022,1756709450421,-480.0,0.00014563,2]
[382689024,1756709450430,-480.0,0.00014563,2]
[382689026,1756709450439,-480.0,0.00014563,2]
[382689028,1756709450448,-480.0,0.00014563,2]
[382689030,1756709450458,-1045.12,0.00014563,2]
[382689032,1756709450468,-1050.59,0.00014563,2]
[382689034,1756709450477,-480.0,0.00014563,2]
[382689036,1756709450486,-480.0,0.00014563,2]
[382689038,1756709450495,-480.0,0.00014563,2]
[382689040,1756709450505,-480.0,0.00014563,2]
[382689042,1756709450514,-1203.48,0.00014563,2]
[382689044,1756709450523,-522.25023421,0.00014563,2]
[382689046,1756709450533,-1256.15,0.00014563,2]
[382689048,1756709450542,-480.0,0.00014563,2]
[382689050,1756709450553,-517.33,0.00014563,2]
[382689052,1756709450565,-296.77708557,0.00014563,2]
[382689054,1756709450574,-480.0,0.00014563,2]
[382689056,1756709450583,-480.0,0.00014563,2]
[382689058,1756709450593,-480.0,0.00014563,2]
[382689059,1756709450602,-669.17,0.00014563,2]
[382689061,1756709450612,-480.0,0.00014563,2]
[382689063,1756709450621,-528.53,0.00014563,2]
[382689065,1756709450631,-528.84,0.00014563,2]
[382689067,1756709450640,-480.0,0.00014563,2]
[382689069,1756709450650,-480.0,0.00014563,2]
[382689072,1756709450659,-480.0,0.00014563,2]
[382689074,1756709450668,-480.0,0.00014563,2]
[382689076,1756709450677,-467.84492749,0.00014563,2]
[382689149,1756709451371,-684.14,0.00014014,2]
[382689151,1756709451380,-684.14,0.00014288,2]
[382689153,1756709451389,-684.14,0.00014562,2]
[382689155,1756709451398,-56.70507251,0.00014563,2]
[382689157,1756709451407,-480.0,0.00014563,2]
[382689159,1756709451417,-1740.15,0.00014563,2]
[382689161,1756709451426,-1116.03,0.00014563,2]
[382689163,1756709451436,-480.0,0.00014563,2]
[382689165,1756709451446,-480.0,0.00014563,2]
[382689167,1756709451455,-480.0,0.00014563,2]
[382689169,1756709451464,-608.56,0.00014563,2]
[382689171,1756709451474,-572.95,0.00014563,2]
[382689173,1756709451484,-480.0,0.00014563,2]
[382689175,1756709451495,-1177.25,0.00014563,2]
[382689177,1756709451505,-480.0,0.00014563,2]
[382689178,1756709451516,-616.82,0.00014563,2]
[382689180,1756709451527,-219.54425471,0.00014563,2]
[382689183,1756709451536,-153.44143,0.00014563,2]
[382689184,1756709451545,-480.0,0.00014563,2]
[382689186,1756709451558,-1049.72,0.00014563,2]
[382689188,1756709451568,-480.0,0.00014563,2]
[382689190,1756709451577,-480.0,0.00014563,2]
[382689192,1756709451586,-411.95930605,0.00014563,2]
[382689194,1756709451597,-507.22,0.00014563,2]
[382689196,1756709451607,-151.0,0.00014563,2]
[382689199,1756709451616,-480.0,0.00014563,2]
[382689201,1756709451627,-151.0,0.00014563,2]
[382689203,1756709451637,-480.0,0.00014563,2]
[382689205,1756709451647,-266.257991,0.00014563,2]
[382689207,1756709451656,-480.0,0.00014563,2]
[382689209,1756709451666,-151.0,0.00014563,2]
[382689211,1756709451675,-151.0,0.00014563,2]
[382689213,1756709451685,-480.0,0.00014563,2]
[382689215,1756709451694,-480.0,0.00014563,2]
[382689217,1756709451703,-276.040837,0.00014563,2]
[382689219,1756709451713,-151.0,0.00014563,2]
[382689221,1756709451722,-480.0,0.00014563,2]
[382689223,1756709451731,-151.0,0.00014563,2]
[382689225,1756709451741,-151.0,0.00014563,2]
[382689227,1756709451750,-151.0,0.00014563,2]
[382689229,1756709451759,-480.0,0.00014563,2]
[382689231,1756709451769,-153.355312,0.00014564,2]
[382689233,1756709451778,-151.0,0.00014564,2]
[382689235,1756709451788,-151.0,0.00014564,2]
[382689237,1756709451798,-151.0,0.00014567,2]
[382689239,1756709451807,-399.152447,0.00014569,2]
[382689241,1756709451818,-399.152447,0.00014569,2]
[382689243,1756709451828,-151.0,0.00014569,2]
[382689245,1756709451838,-399.152447,0.00014569,2]
[382689247,1756709451847,-399.152447,0.00014569,2]
[382689249,1756709451857,-170.00457,0.00014569,2]
[382689251,1756709451866,-170.00457,0.00014569,2]
[382689253,1756709451876,-170.00457,0.00014569,2]
[382689255,1756709451886,-170.00457,0.00014569,2]
[382689257,1756709451895,-3085.93,0.00014569,2]
[382689259,1756709451905,-548.99,0.00014569,2]
[382689261,1756709451914,-480.0,0.00014569,2]
[382689263,1756709451924,-206.140437,0.00014569,2]
[382689265,1756709451933,-1277.53,0.00014569,2]
[382689267,1756709451943,-1075.57,0.00014569,2]
[382689269,1756709451953,-1089.98,0.00014569,2]
[382689272,1756709451962,-2063.15,0.00014569,2]
[382689273,1756709451972,-654.81,0.00014569,2]
[382689275,1756709451982,-1325.44,0.00014569,2]
[382689277,1756709451991,-571.25,0.00014569,2]
[382689279,1756709452001,-506.71877065,0.00014569,2]
[382689282,1756709452011,-224.043853,0.0001457,2]
[382689284,1756709452021,-151.0,0.0001457,2]
[382689286,1756709452031,-424.20500603,0.0001457,2]
[382689324,1756709452428,-293.11499397,0.0001457,2]
[382689325,1756709452439,-183.37159999,0.0001457,2]
[382689326,1756709452461,-792.99840001,0.0001457,2]
[382689327,1756709452471,-130.51500603,0.0001457,2]
[382691717,1756709510112,1579.86428013,0.00013914,2]
[382691723,1756709536562,2999.5944496,0.00013914,2]
[382691756,1756709707093,1320.0,0.00013833,2]
[382691760,1756709717513,1320.0,0.00013884,2]
[382691761,1756709722798,381.18192321,0.00013779,2]
[382691762,1756709722827,938.81807679,0.00013779,2]
[382691765,1756709731611,1320.0,0.00013865,2]
[382691813,1756709948122,172.93884,0.00013592,2]
[382691814,1756709948323,861.264452,0.00013699,2]
[382691815,1756709948466,212.485574,0.00013593,2]
[382691816,1756709948781,176.09900264,0.00013595,2]
[382691824,1756710047250,1109.22747447,0.00013979,2]
[382691825,1756710070290,2624.6451434,0.00013912,2]
[382691832,1756710170435,168.0,0.00013909,2]
[382691833,1756710174234,907.59335677,0.00025,30]
[382691834,1756710174871,168.0,0.0001392,2]
[382691835,1756710189891,168.0,0.00013928,2]
[382691836,1756710194552,168.0,0.00013806,2]
[382691837,1756710198870,168.0,0.00013825,2]
[382691857,1756710391492,887.3819796,0.00013915,2]
[382691860,1756710416003,857.1494571,0.00013846,2]
[382691861,1756710416032,2701.8505429,0.00013846,2]
[382691865,1756710467494,7298.1594571,0.00013912,2]
[382691866,1756710467522,10000.01,0.00013912,2]
[382691867,1756710467549,10000.01,0.00013912,2]
[382691868,1756710467576,10000.01,0.00013912,2]
[382691869,1756710467603,10000.01,0.00013912,2]
[382691870,1756710467630,10000.01,0.00013912,2]
[382691871,1756710467657,10000.01,0.00013912,2]
[382691872,1756710467685,10000.01,0.00013912,2]
[382691873,1756710467716,10000.01,0.00013912,2]
[382691874,1756710467749,10000.01,0.00013912,2]
[382691875,1756710467778,10000.01,0.00013912,2]
[382691876,1756710467806,10000.01,0.00013912,2]
[382691877,1756710467835,10000.01,0.00013912,2]
[382691878,1756710467863,10000.01,0.00013912,2]
[382691879,1756710467894,10000.01,0.00013912,2]
[382691880,1756710467920,10000.01,0.00013912,2]
[382691881,1756710467946,10000.01,0.00013912,2]
[382691882,1756710467973,10000.01,0.00013912,2]
[382691883,1756710468000,10000.01,0.00013912,2]
[382691884,1756710468027,10000.01,0.00013912,2]
[382691885,1756710468054,10000.01,0.00013912,2]
[382691886,1756710468081,10000.01,0.00013912,2]
[382691887,1756710468108,10000.01,0.00013912,2]
[382691888,1756710468137,10000.01,0.00013912,2]
[382691889,1756710468165,10000.01,0.00013912,2]
[382691890,1756710468195,10000.01,0.00013912,2]
[382691891,1756710468223,10000.01,0.00013912,2]
[382691892,1756710468251,10000.01,0.00013912,2]
[382691893,1756710468280,10000.01,0.00013912,2]
[382691894,1756710468309,10000.01,0.00013912,2]
[382691895,1756710468337,10000.01,0.00013912,2]
[382691896,1756710468367,10000.01,0.00013912,2]
[382691897,1756710468395,10000.01,0.00013912,2]
[382691898,1756710468423,5910.11924284,0.00013912,2]
[382691918,1756710632236,-300.0,0.00014009,2]
[382691919,1756710632246,-711.7197878,0.00014009,2]
[382691920,1756710632286,-488.2802122,0.00014009,2]
[382691921,1756710632295,-444.04690957,0.0001401,2]
[382691968,1756710638231,-500.0,0.00014009,2]
[382691970,1756710638241,-500.0,0.00014009,2]
[382691972,1756710638251,-401.21430455,0.00014009,2]
[382691974,1756710638262,-98.78569545,0.00014009,2]
[382691976,1756710638272,-307.43453656,0.00014009,2]
[382691978,1756710638282,-500.0,0.00014009,2]
[382691980,1756710638291,-500.0,0.00014009,2]
[382691982,1756710638301,-430.0,0.00014009,2]
[382691984,1756710638311,-595.46309043,0.0001401,2]
[382691986,1756710638321,-480.0,0.0001401,2]
[382691988,1756710638330,-480.0,0.0001401,2]
[382691990,1756710638339,-480.0,0.0001401,2]
[382691992,1756710638349,-480.0,0.0001401,2]
[382691994,1756710638359,-1190.77,0.0001401,2]
[382691996,1756710638368,-480.0,0.0001401,2]
[382691998,1756710638378,-480.0,0.0001401,2]
[382692000,1756710638387,-480.0,0.0001401,2]
[382692002,1756710638397,-900.84,0.0001401,2]
[382692005,1756710638406,-1808.15,0.0001401,2]
[382692007,1756710638416,-480.0,0.0001401,2]
[382692009,1756710638425,-1251.99,0.0001401,2]
[382692011,1756710638434,-480.0,0.0001401,2]
[382692012,1756710638444,-1764.67,0.0001401,2]
[382692015,1756710638453,-500.0,0.0001401,2]
[382692017,1756710638463,-400.0,0.0001401,2]
[382692018,1756710638472,-500.0,0.0001401,2]
[382692020,1756710638482,-500.0,0.0001401,2]
[382692023,1756710638491,-500.0,0.0001401,2]
[382692025,1756710638501,-500.0,0.0001401,2]
[382692027,1756710638510,-500.0,0.0001401,2]
[382692028,1756710638519,-500.0,0.0001401,2]
[382692031,1756710638529,-500.0,0.0001401,2]
[382692032,1756710638538,-500.0,0.0001401,2]
[382692034,1756710638548,-383.44856987,0.0001401,2]
[382692036,1756710638557,-500.0,0.0001401,2]
[382692038,1756710638567,-3032.46693833,0.0001401,2]
[382692040,1756710638576,-625.95541236,0.00014011,2]
[382692043,1756710638587,-464.82710566,0.00014011,2]
[382692045,1756710638598,-480.0,0.00014011,2]
[382692047,1756710638608,-480.0,0.00014011,2]
[382692049,1756710638617,-851.54,0.00014011,2]
[382692051,1756710638627,-480.0,0.00014011,2]
[382692053,1756710638636,-480.0,0.00014011,2]
[382692055,1756710638646,-480.0,0.00014011,2]
[382692057,1756710638655,-480.0,0.00014011,2]
[382692059,1756710638667,-480.0,0.00014011,2]
[382692061,1756710638677,-486.93340325,0.00014011,2]
[382692063,1756710638687,-480.0,0.00014011,2]
[382692065,1756710638699,-480.0,0.00014011,2]
[382692067,1756710638713,-480.0,0.00014011,2]
[382692091,1756710638934,-484.72,0.00014011,2]
[382692093,1756710638946,-486.2030445,0.00014011,2]
[382692095,1756710638955,-480.0,0.00014011,2]
[382692097,1756710638966,-480.0,0.00014011,2]
[382692099,1756710638977,-480.0,0.00014011,2]
[382692101,1756710638987,-480.0,0.00014011,2]
[382692103,1756710638997,-480.0,0.00014011,2]
[382692105,1756710639006,-480.0,0.00014011,2]
[382692107,1756710639016,-480.0,0.00014011,2]
[382692109,1756710639026,-581.78,0.00014011,2]
[382692111,1756710639035,-504.59,0.00014011,2]
[382692113,1756710639044,-480.0,0.00014011,2]
[382692115,1756710639053,-907.92,0.00014011,2]
[382692117,1756710639063,-480.0,0.00014011,2]
[382692119,1756710639072,-589.06,0.00014011,2]
[382692121,1756710639082,-623.19,0.00014011,2]
[382692123,1756710639092,-480.0,0.00014011,2]
[382692125,1756710639102,-480.0,0.00014011,2]
[382692127,1756710639111,-480.0,0.00014011,2]
[382692129,1756710639121,-480.0,0.00014011,2]
[382692130,1756710639130,-480.0,0.00014011,2]
[382692132,1756710639140,-620.08695432,0.00014011,2]
[382692134,1756710639150,-480.0,0.00014011,2]
[382692136,1756710639160,-480.0,0.00014011,2]
[382692138,1756710639169,-480.0,0.00014011,2]
[382692140,1756710639179,-480.0,0.00014011,2]
[382692142,1756710639188,-480.0,0.00014011,2]
[382692144,1756710639198,-631.58,0.00014011,2]
[382692146,1756710639207,-480.0,0.00014011,2]
[382692148,1756710639216,-480.0,0.00014011,2]
[382692150,1756710639226,-480.0,0.00014011,2]
[382692152,1756710639235,-480.0,0.00014011,2]
[382692154,1756710639244,-482.49579189,0.00014011,2]
[382692156,1756710639253,-480.0,0.00014011,2]
[382692158,1756710639262,-817.78,0.00014011,2]
[382692160,1756710639272,-634.08,0.00014011,2]
[382692162,1756710639281,-480.0,0.00014011,2]
[382692164,1756710639291,-480.0,0.00014011,2]
[382692166,1756710639300,-480.0,0.00014011,2]
[382692167,1756710639309,-480.0,0.00014011,2]
[382692168,1756710639318,-480.0,0.00014011,2]
[382692169,1756710639327,-467.95252676,0.00014011,2]
[382692170,1756710639337,-480.0,0.00014011,2]
[382692171,1756710639346,-751.66,0.00014011,2]
[382692172,1756710639355,-480.0,0.00014011,2]
[382692173,1756710639365,-480.56,0.00014011,2]
[382692174,1756710639374,-787.42,0.00014011,2]
[382692175,1756710639384,-189.25323783,0.00014011,2]
[382692176,1756710639393,-964.57,0.00014011,2]
[382692177,1756710639403,-480.0,0.00014011,2]
[382692178,1756710639412,-791.7,0.00014011,2]
[382692179,1756710639422,-480.0,0.00014011,2]
[382692180,1756710639431,-2155.71,0.00014011,2]
[382692181,1756710639440,-480.0,0.00014011,2]
[382692182,1756710639449,-517.84,0.00014011,2]
[382692183,1756710639459,-480.0,0.00014011,2]
[382692184,1756710639468,-698.63,0.00014011,2]
[382692185,1756710639477,-480.0,0.00014011,2]
[382692186,1756710639487,-744.38,0.00014011,2]
[382692187,1756710639496,-480.0,0.00014011,2]
[382692188,1756710639506,-480.0,0.00014011,2]
[382692190,1756710639515,-480.0,0.00014011,2]
[382692191,1756710639524,-1049.21,0.00014011,2]
[382692192,1756710639533,-590.34,0.00014011,2]
[382692193,1756710639542,-480.0,0.00014011,2]
[382692195,1756710639552,-480.0,0.00014011,2]
[382692197,1756710639562,-645.2,0.00014011,2]
[382692199,1756710639571,-480.0,0.00014011,2]
[382692201,1756710639580,-480.0,0.00014011,2]
[382692203,1756710639589,-480.0,0.00014011,2]
[382692205,1756710639599,-480.0,0.00014011,2]
[382692207,1756710639609,-699.41,0.00014011,2]
[382692209,1756710639618,-480.0,0.00014011,2]
[382692211,1756710639627,-480.0,0.00014011,2]
[382692213,1756710639636,-480.0,0.00014011,2]
[382692215,1756710639646,-480.0,0.00014011,2]
[382692217,1756710639655,-480.0,0.00014011,2]
[382692219,1756710639664,-946.47,0.00014011,2]
[382692221,1756710639674,-576.9,0.00014011,2]
[382692223,1756710639683,-480.0,0.00014011,2]
[382692225,1756710639693,-480.0,0.00014011,2]
[382692227,1756710639702,-480.0,0.00014011,2]
[382692229,1756710639711,-708.73,0.00014011,2]
[382692231,1756710639721,-842.48,0.00014011,2]
[382692233,1756710639731,-480.0,0.00014011,2]
[382692235,1756710639740,-480.0,0.00014011,2]
[382692237,1756710639749,-500.99053729,0.00014011,2]
[382692239,1756710639759,-637.94,0.00014011,2]
[382692241,1756710639768,-480.0,0.00014011,2]
[382692243,1756710639778,-480.0,0.00014011,2]
[382692245,1756710639787,-480.0,0.00014011,2]
[382692247,1756710639796,-480.0,0.00014011,2]
[382692249,1756710639806,-480.0,0.00014011,2]
[382692251,1756710639815,-480.0,0.00014011,2]
[382692253,1756710639825,-480.61885366,0.00014011,2]
[382692255,1756710639835,-917.63,0.00014011,2]
[382692257,1756710639845,-480.0,0.00014011,2]
[382692259,1756710639854,-480.0,0.00014011,2]
[382692261,1756710639863,-503.19,0.00014011,2]
[382692263,1756710639873,-480.0,0.00014011,2]
[382692265,1756710639882,-500.0,0.00014011,2]
[382692267,1756710639891,-480.0,0.00014011,2]
[382692269,1756710639901,-151.0,0.00014011,2]
[382692271,1756710639910,-151.0,0.00014011,2]
[382692273,1756710639920,-500.0,0.00014011,2]
[382692275,1756710639933,-242.3268336,0.00014011,2]
[382692277,1756710639942,-1432.0,0.00014011,2]
[382692279,1756710639952,-1091.77,0.00014011,2]
[382692281,1756710639961,-480.0,0.00014011,2]
[382692283,1756710639972,-480.0,0.00014011,2]
[382692285,1756710639981,-152.33332027,0.00014011,2]
[382692287,1756710639991,-151.0,0.00014011,2]
[382692289,1756710640003,-151.0,0.00014011,2]
[382692291,1756710640012,-151.0,0.00014011,2]
[382692293,1756710640022,-151.0,0.00014011,2]
[382692295,1756710640031,-151.0,0.00014011,2]
[382692297,1756710640040,-500.0,0.00014011,2]
[382692299,1756710640050,-197.03558623,0.00014011,2]
[382692301,1756710640059,-152.17108138,0.00014011,2]
[382692303,1756710640069,-480.0,0.00014012,2]
[382692305,1756710640079,-480.0,0.00014012,2]
[382692307,1756710640088,-773.67,0.00014012,2]
[382692309,1756710640098,-480.0,0.00014012,2]
[382692311,1756710640107,-779.01,0.00014012,2]
[382692313,1756710640117,-230.74040021,0.00014012,2]
[382692315,1756710640126,-480.0,0.00014012,2]
[382692317,1756710640136,-566.67,0.00014012,2]
[382692319,1756710640145,-480.0,0.00014012,2]
[382692321,1756710640155,-504.35,0.00014012,2]
[382692323,1756710640164,-480.0,0.00014012,2]
[382692325,1756710640174,-480.0,0.00014012,2]
[382692327,1756710640183,-480.0,0.00014012,2]
[382692329,1756710640193,-556.3,0.00014012,2]
[382692331,1756710640203,-1100.19,0.00014012,2]
[382692333,1756710640213,-481.52879775,0.00014012,2]
[382692335,1756710640222,-480.0,0.00014012,2]
[382692337,1756710640232,-480.0,0.00014012,2]
[382692339,1756710640241,-480.0,0.00014012,2]
[382692341,1756710640251,-917.12,0.00014012,2]
[382692343,1756710640260,-996.71,0.00014012,2]
[382692345,1756710640270,-480.0,0.00014012,2]
[382692347,1756710640279,-497.33322405,0.00014012,2]
[382692349,1756710640289,-1027.18,0.00014012,2]
[382692351,1756710640298,-480.0,0.00014012,2]
[382692353,1756710640308,-480.0,0.00014012,2]
[382692355,1756710640317,-894.41,0.00014012,2]
[382692357,1756710640327,-480.0,0.00014012,2]
[382692359,1756710640337,-480.0,0.00014012,2]
[382692361,1756710640347,-499.82,0.00014012,2]
[382692363,1756710640356,-480.0,0.00014012,2]
[382692365,1756710640366,-483.50344514,0.00014012,2]
[382692367,1756710640375,-556.35,0.00014012,2]
[382692369,1756710640384,-480.0,0.00014012,2]
[382692371,1756710640393,-972.48,0.00014012,2]
[382692373,1756710640403,-991.88,0.00014012,2]
[382692374,1756710640413,-1001.58,0.00014012,2]
[382692376,1756710640422,-480.0,0.00014012,2]
[382692378,1756710640432,-798.82,0.00014012,2]
[382692380,1756710640441,-480.0,0.00014012,2]
[382692382,1756710640450,-1206.93,0.00014012,2]
[382692384,1756710640460,-1014.88,0.00014012,2]
[382692386,1756710640469,-598.63,0.00014012,2]
[382692388,1756710640479,-1203.81,0.00014012,2]
[382692390,1756710640488,-2611.98,0.00014012,2]
[382692392,1756710640497,-480.0,0.00014012,2]
[382692394,1756710640506,-480.0,0.00014012,2]
[382692396,1756710640515,-558.68,0.00014012,2]
[382692398,1756710640525,-3206.1,0.00014012,2]
[382692400,1756710640535,-500.0,0.00014012,2]
[382692402,1756710640544,-151.0,0.00014012,2]
[382692404,1756710640554,-500.0,0.00014012,2]
[382692406,1756710640564,-151.0,0.00014012,2]
[382692408,1756710640574,-151.0,0.00014012,2]
[382692410,1756710640584,-151.0,0.00014012,2]
[382692412,1756710640594,-4712.07,0.00014012,2]
[382692414,1756710640603,-480.0,0.00014012,2]
[382692416,1756710640612,-480.0,0.00014012,2]
[382692418,1756710640622,-480.0,0.00014012,2]
[382692420,1756710640632,-1367.63,0.00014012,2]
[382692422,1756710640642,-480.0,0.00014012,2]
[382692424,1756710640652,-480.0,0.00014012,2]
[382692426,1756710640661,-1100.92,0.00014012,2]
[382692428,1756710640670,-480.0,0.00014012,2]
[382692430,1756710640679,-1047.94,0.00014012,2]
[382692432,1756710640689,-480.0,0.00014012,2]
[382692434,1756710640698,-827.98,0.00014012,2]
[382692436,1756710640708,-2031.35,0.00014012,2]
[382692438,1756710640718,-480.0,0.00014012,2]
[382692440,1756710640728,-500.0,0.00014012,2]
[382692442,1756710640737,-500.0,0.00014012,2]
[382692444,1756710640746,-151.0,0.00014012,2]
[382692446,1756710640755,-151.75506122,0.00014012,2]
[382692448,1756710640765,-481.35453299,0.00014012,2]
[382692450,1756710640774,-1673.94,0.00014012,2]
[382692452,1756710640786,-4464.16,0.00014012,2]
[382692454,1756710640795,-638.69,0.00014012,2]
[382692456,1756710640804,-1073.57,0.00014012,2]
[382692458,1756710640814,-4391.27,0.00014012,2]
[382692460,1756710640824,-532.49531859,0.00014012,2]
[382692462,1756710640833,-1842.33,0.00014012,2]
[382692464,1756710640842,-586.42,0.00014012,2]
[382692466,1756710640852,-483.39713193,0.00014012,2]
[382692468,1756710640861,-525.2,0.00014012,2]
[382692470,1756710640871,-1281.34,0.00014012,2]
[382692472,1756710640880,-1134.87,0.00014012,2]
[382692474,1756710640889,-568.54,0.00014012,2]
[382692476,1756710640898,-480.42453521,0.00014012,2]
[382692478,1756710640907,-594.62,0.00014012,2]
[382692480,1756710640917,-480.0,0.00014012,2]
[382692482,1756710640930,-558.22,0.00014012,2]
[382692484,1756710640939,-480.0,0.00014012,2]
[382692486,1756710640949,-1229.97,0.00014012,2]
[382692488,1756710640958,-1065.05,0.00014012,2]
[382692490,1756710640969,-500.0,0.00014012,2]
[382692492,1756710640978,-480.0,0.00014013,2]
[382692494,1756710640987,-493.77312248,0.00014013,2]
[382692496,1756710640997,-480.0,0.00014013,2]
[382692498,1756710641008,-480.0,0.00014013,2]
[382692500,1756710641019,-480.0,0.00014013,2]
[382692502,1756710641028,-480.0,0.00014013,2]
[382692504,1756710641037,-480.0,0.00014013,2]
[382692506,1756710641046,-480.0,0.00014013,2]
[382692507,1756710641055,-480.0,0.00014013,2]
[382692509,1756710641064,-777.42,0.00014013,2]
[382692511,1756710641074,-480.0,0.00014013,2]
[382692513,1756710641083,-480.0,0.00014013,2]
[382692515,1756710641094,-773.54,0.00014013,2]
[382692517,1756710641103,-486.19925006,0.00014013,2]
[382692520,1756710641113,-480.0,0.00014013,2]
[382692521,1756710641123,-793.87,0.00014013,2]
[382692523,1756710641132,-480.0,0.00014013,2]
[382692525,1756710641141,-1102.87,0.00014013,2]
[382692527,1756710641150,-510.93,0.00014013,2]
[382692529,1756710641159,-480.0,0.00014013,2]
[382692531,1756710641169,-480.0,0.00014013,2]
[382692533,1756710641179,-480.0,0.00014013,2]
[382692535,1756710641188,-480.0,0.00014013,2]
[382692537,1756710641198,-480.0,0.00014013,2]
[382692539,1756710641207,-480.0,0.00014013,2]
[382692541,1756710641217,-480.0,0.00014013,2]
[382692543,1756710641226,-480.0,0.00014013,2]
[382692545,1756710641236,-480.0,0.00014013,2]
[382692547,1756710641246,-1037.39,0.00014013,2]
[382692549,1756710641255,-480.0,0.00014013,2]
[382692551,1756710641265,-480.0,0.00014013,2]